Body Name,Body,Service Level,Expense Type,Expense Code,Narrative,Date,Transaction Number,Amount,Capital and Revenue,Supplier Name,Supplier ID
South Ribble Council,http://statistics.data.gov.uk/doc/local-authority/30UN,Area 2 - Waste Transport/Eastern & Central Teams,Cap Vehicles,C440,30x 1100ltr Grey/Black Bin with Orange Lid.,27/09/2019,0000449807,"3,540.00",Revenue,A&C Weber UK Ltd,132802
South Ribble Council,http://statistics.data.gov.uk/doc/local-authority/30UN,Healthy Communities,Sports Dev Expenses,4894,For  the provision of sports training 4th & 5th  September  as agreed with the Sports development officer,20/09/2019,0000449619,500.00,Revenue,Ability Consultancy (NW) Ltd,132914
South Ribble Council,http://statistics.data.gov.uk/doc/local-authority/30UN,Regeneration,Other Misc,4851,Worden Posters and Flyers,18/09/2019,0000449479,674.00,Revenue,AINSWORTH & PARKINSON,130107
South Ribble Council,http://statistics.data.gov.uk/doc/local-authority/30UN,Revenues Plus,Financial,4811,post office,06/09/2019,0000449397,992.95,Revenue,ALLPAY LTD,00122276
South Ribble Council,http://statistics.data.gov.uk/doc/local-authority/30UN,Revenues Plus,Financial,4811,paypoint,06/09/2019,0000449397,135.60,Revenue,ALLPAY LTD,00122276
South Ribble Council,http://statistics.data.gov.uk/doc/local-authority/30UN,Revenues Plus,Financial,4811,webcon,06/09/2019,0000449397,46.00,Revenue,ALLPAY LTD,00122276
South Ribble Council,http://statistics.data.gov.uk/doc/local-authority/30UN,Regeneration,Other Misc,4861,Printing of 2000 Heritage Trail Leaflets - Figure 8 circular A5 stapled booklet  8pp  150gsm Silk � full colour,04/09/2019,0000449258,300.00,Revenue,AMJ LTD (THE STATIONERY STORE),00096946
South Ribble Council,http://statistics.data.gov.uk/doc/local-authority/30UN,Regeneration,Operational Furniture & Equip,4010,"Purchase of gazebos, tables and chairs",11/09/2019,0000449480,"3,511.67",Revenue,AMJ LTD (THE STATIONERY STORE),00096946
South Ribble Council,http://statistics.data.gov.uk/doc/local-authority/30UN,Housing,Cap Grant- Improve Grants,C570,DFG WORKS TO BATHROOM AT ADDRESS REDACTED AS PER YOUR QUOTE SUPPLIED OF 4551.38 CLIENT CONTRIBUTION 1018.81,27/09/2019,0000449818,"3,532.57",Revenue,APG DOMESTIC SERVICES,00061463
South Ribble Council,http://statistics.data.gov.uk/doc/local-authority/30UN,Property Services,Rep & Maint Premises,2020,per NAME REDACTED force through as credits rec`d to cancel out previous inv`s now billing qtrly,04/09/2019,0000449156,646.80,Revenue,ASHTEAD PLANT HIRE CO LTD,00014245
South Ribble Council,http://statistics.data.gov.uk/doc/local-authority/30UN,Democratic Services,Repair Costs,4059,"HIRE FOR 3 MONTH PERIOD - ENVOY CENTRAL CONTROL UNIT WITH FREQUENCY SHIFTER (POWER 100 UNITS), FREESTANDING",06/09/2019,0000449200,750.00,Revenue,AUDITEL,130495
South Ribble Council,http://statistics.data.gov.uk/doc/local-authority/30UN,Property Services,Rep & Maint Premises,2020,To supply & fit a new roller shutter to the meat stall at Leyland market as per estimate ref 1555,06/09/2019,0000449316,"1,990.00",Revenue,AVALON DOORS & AWNINGS LTD,131051
South Ribble Council,http://statistics.data.gov.uk/doc/local-authority/30UN,Shared Financial Services,Balance Sheet,0030,28th august 20,19/09/2019,0000449249,"1,341.82",Revenue,Barclays Bank Plc,130842
South Ribble Council,http://statistics.data.gov.uk/doc/local-authority/30UN,Property Services,Rep & Maint Premises,2020,To run supplies to door exits unit to replace inadequate electrical supplies at Moss Side Community Centre as per quotation dated 6th Aug 2019,04/09/2019,0000449228,"1,659.56",Revenue,BELEC ELECTRICAL LTD,130290
South Ribble Council,http://statistics.data.gov.uk/doc/local-authority/30UN,Property Services,Rep & Maint Premises,2020,Please attend Leyland market to install a large roof fan to the managers office. Also to repair the outdoor speakers.,04/09/2019,0000449264,233.15,Revenue,BELEC ELECTRICAL LTD,130290
South Ribble Council,http://statistics.data.gov.uk/doc/local-authority/30UN,Property Services,Rep & Maint Premises,2020,Please attend Moss Side Community Centre to repair the emergency release switch.,04/09/2019,0000449264,77.75,Revenue,BELEC ELECTRICAL LTD,130290
South Ribble Council,http://statistics.data.gov.uk/doc/local-authority/30UN,Area 3 - Parks/Leyland East West,Capital Expenditure,C230,"INSTALLATION OF POWER SUPPLIES BETWEEN CONTROL UNIT AND MIXING GROUPS ETC, WORDEN PARK CONSERVATORY",18/09/2019,0000449541,821.37,Revenue,BELEC ELECTRICAL LTD,130290
South Ribble Council,http://statistics.data.gov.uk/doc/local-authority/30UN,Property Services,Capital Expenditure,C230,To undertake works to install an RCD consumer unit to the civic centre garage and associated groundworks  as per quotation No 19,13/09/2019,0000449542,"5,808.56",Revenue,BELEC ELECTRICAL LTD,130290
South Ribble Council,http://statistics.data.gov.uk/doc/local-authority/30UN,Regeneration,Other Grants and Subscriptions,4741,Provision of Syrian Cafe as per submission to Social Integration Fund,06/09/2019,0000448780,"10,000.00",Revenue,BROTHERS OF CHARITY SERVICES,00086956
South Ribble Council,http://statistics.data.gov.uk/doc/local-authority/30UN,Area 1 - Penwortham Western Parishes,Contract Hire & Lease Costs,3212,"Continued hire of mini sweeper for June, July, August and September 2019. 17 weeks @ 525.00 per week",18/09/2019,0000449282,"2,625.00",Revenue,BUNCE (ASHBURY) LTD,132805
South Ribble Council,http://statistics.data.gov.uk/doc/local-authority/30UN,Homelessness,Contributions,4730,Rent in Advance in regards to NAMES REDACTED at ADDRESS REDACTED,18/09/2019,0000449373,550.00,Revenue,Charles Parker Bennett & Co.,132923
South Ribble Council,http://statistics.data.gov.uk/doc/local-authority/30UN,Homelessness,Contractors Charges 5,5311,"NAME REDACTED, ADDRESS REDACTED July 2019 x 31 days at 38.63/day for each flat",04/09/2019,0000449022,"2,395.06",Revenue,CHORLEY BOROUGH COUNCIL,00017352
South Ribble Council,http://statistics.data.gov.uk/doc/local-authority/30UN,Homelessness,Contractors Charges 5,5311,"NAME REDACTED, ADDRESS REDACTED 1-5/8/2019 5 days at 38.63/day x 2 flats final bill",04/09/2019,0000449022,386.30,Revenue,CHORLEY BOROUGH COUNCIL,00017352
South Ribble Council,http://statistics.data.gov.uk/doc/local-authority/30UN,Homelessness,Contributions,4730,ADDRESS REDACTED July 2019 x 31 days at 38.63/day,04/09/2019,0000449023,"1,197.53",Revenue,CHORLEY BOROUGH COUNCIL,00017352
South Ribble Council,http://statistics.data.gov.uk/doc/local-authority/30UN,Housing,Contributions,4730,ADDRESS REDACTED Cotswold House August 2019 28 days @ 38.63 per day = 1081.64 + VAT,04/09/2019,0000449222,"1,081.64",Revenue,CHORLEY BOROUGH COUNCIL,00017352
South Ribble Council,http://statistics.data.gov.uk/doc/local-authority/30UN,Healthy Communities,Rep & Maint Premises,2020,Please supply equipment to Civic Centre as per quotation 675454 dated 12th July 2019 as per NAME REDACTED,13/09/2019,0000449497,683.00,Revenue,CHUBB LTD,00090625
South Ribble Council,http://statistics.data.gov.uk/doc/local-authority/30UN,Property Services,Rep & Maint Premises,2020,Please attend Leyland market to replace the CCTV cameras as per quotation 676366 - existing contract number 1584234,13/09/2019,0000449498,"1,719.00",Revenue,CHUBB LTD,00090625
South Ribble Council,http://statistics.data.gov.uk/doc/local-authority/30UN,Property Services,Rep & Maint Fixed Plant,2035,2019 / 2020 annual fees for the service & monitoring of the Intruder alarm at Leyland market as per quote 663976,20/09/2019,0000449717,419.00,Revenue,CHUBB LTD,00090625
South Ribble Council,http://statistics.data.gov.uk/doc/local-authority/30UN,Area 2 - Waste Transport/Eastern & Central Teams,Materials General,4040,4 x SUSPENSION AIRBAGS - MX04YNL-JFC13024,04/09/2019,0000449299,602.04,Revenue,CICELEY COMMERCIALS LTD,00059381
South Ribble Council,http://statistics.data.gov.uk/doc/local-authority/30UN,Area 2 - Waste Transport/Eastern & Central Teams,Materials General,4040,AD BLUE PUMP PJ62UCL JFC 13109,11/09/2019,0000449439,838.87,Revenue,CICELEY COMMERCIALS LTD,00059381
South Ribble Council,http://statistics.data.gov.uk/doc/local-authority/30UN,Homelessness,Contributions,4730,"licence, support and maintenance 1/10/19 - 30/9/20 Hosting fee HOM 930.13 net Partner Support Plan HOM 3256.02 net",04/09/2019,0000449118,"4,186.15",Revenue,CIVICA UK LTD,00102717
South Ribble Council,http://statistics.data.gov.uk/doc/local-authority/30UN,Democratic Services,Consultancy Fees,4541,TO PROVIDE 2 FULL DAYS OF TRAINING ON REPORTS MANAGEMENT ON 4 & 5 SEPTEMBER 2019,20/09/2019,0000449705,"1,300.00",Revenue,CIVICA UK LTD,00102717
South Ribble Council,http://statistics.data.gov.uk/doc/local-authority/30UN,HR & Communications,Balance Sheet,0030,SEPTEMBER 2019 - CHILDCARE VOUCHERS,19/09/2019,0000449438,"1,660.58",Revenue,COMPUTERSHARE VOUCHER SERVICES,00116499
South Ribble Council,http://statistics.data.gov.uk/doc/local-authority/30UN,Revenues Plus,Postage,4291,Postage - June to September 2019,04/09/2019,0000449326,535.42,Revenue,CRITIQOM,131053
South Ribble Council,http://statistics.data.gov.uk/doc/local-authority/30UN,Revenues Plus,Postage,4291,Postage - June to September 2019,13/09/2019,0000449443,400.78,Revenue,CRITIQOM,131053
South Ribble Council,http://statistics.data.gov.uk/doc/local-authority/30UN,Revenues Plus,Postage,4291,Postage - June to September 2019,18/09/2019,0000449546,530.27,Revenue,CRITIQOM,131053
South Ribble Council,http://statistics.data.gov.uk/doc/local-authority/30UN,Revenues Plus,Postage,4291,Postage - June to September 2019,20/09/2019,0000449746,476.71,Revenue,CRITIQOM,131053
South Ribble Council,http://statistics.data.gov.uk/doc/local-authority/30UN,HR & Communications,Balance Sheet,0030,BIKE PACKAGE PLUS CYCLE HELMET - CYCLESCHEME -  FOR NAME REDACTED CERTIFICATE NUMBER:  REDACTED,27/09/2019,0000449870,250.00,Revenue,CYCLESCHEME CO  UK,130237
South Ribble Council,http://statistics.data.gov.uk/doc/local-authority/30UN,Legal,Legal,4821,PROFESSIONAL ADVICE REGARDING AN EMPLOYMENT MATTER - 1 AUGUST - 31 AUGUST 2019,18/09/2019,0000449584,625.00,Revenue,DAC BEACHCROFT LLP,131193
South Ribble Council,http://statistics.data.gov.uk/doc/local-authority/30UN,Area 2 - Waste Transport/Eastern & Central Teams,Materials General,4040,DAMAGE REPAIR YK09ZTR JFC 12495,13/09/2019,0000449085,250.00,Revenue,DAVAND LTD (trading as Longton Coachcraft),131579
South Ribble Council,http://statistics.data.gov.uk/doc/local-authority/30UN,Area 2 - Waste Transport/Eastern & Central Teams,Materials General,4040,vat,13/09/2019,0000449085,0.00,Revenue,DAVAND LTD (trading as Longton Coachcraft),131579
South Ribble Council,http://statistics.data.gov.uk/doc/local-authority/30UN,Regeneration,Other Misc,4851,MC services for Big Do Event,27/09/2019,0000449506,500.00,Revenue,Dave Guest,132934
South Ribble Council,http://statistics.data.gov.uk/doc/local-authority/30UN,Area 3 - Parks/Leyland East West,Grounds Maint Cntrctrs Chgs,4657,51lm Perimeter Repairs in colour EPDM,04/09/2019,0000449058,"2,500.00",Revenue,DCM Projects Ltd,132610
South Ribble Council,http://statistics.data.gov.uk/doc/local-authority/30UN,Area 2 - Waste Transport/Eastern & Central Teams,External Contractors Charges,4570,Spec repair VU60 HLE JFC13110,04/09/2019,0000449308,304.67,Revenue,DENNIS EAGLE LTD,00019774
South Ribble Council,http://statistics.data.gov.uk/doc/local-authority/30UN,Area 2 - Waste Transport/Eastern & Central Teams,Materials General,4040,WINDOW WINDER UNIT VO65KPY JFC 13118,06/09/2019,0000449357,263.27,Revenue,DENNIS EAGLE LTD,00019774
South Ribble Council,http://statistics.data.gov.uk/doc/local-authority/30UN,Area 2 - Waste Transport/Eastern & Central Teams,Materials General,4040,BRAKE DISC DEP102593 VU60HLE JFC 13228,13/09/2019,0000449551,208.71,Revenue,DENNIS EAGLE LTD,00019774
South Ribble Council,http://statistics.data.gov.uk/doc/local-authority/30UN,Area 2 - Waste Transport/Eastern & Central Teams,Materials General,4040,NUT DEP102588 VU60HLE JFC 13228,13/09/2019,0000449551,43.20,Revenue,DENNIS EAGLE LTD,00019774
South Ribble Council,http://statistics.data.gov.uk/doc/local-authority/30UN,Area 3 - Parks/Leyland East West,Clothing- Uniforms & Laundry,4410,1x Arbotec trousers breathflex pro type A Long,04/09/2019,0000449276,236.30,Revenue,DICK LEIGH,00026534
South Ribble Council,http://statistics.data.gov.uk/doc/local-authority/30UN,Area 3 - Parks/Leyland East West,Operational Furniture & Equip,4010,Teufelberger Rope Bucket,04/09/2019,0000449276,180.00,Revenue,DICK LEIGH,00026534
South Ribble Council,http://statistics.data.gov.uk/doc/local-authority/30UN,Housing,Cap Grant- Improve Grants,C570,"DFG WORKS TO BATHROOM AT ADDRESS REDACTED, ONWARD PROPERTY PAY 50% OF QUOTE � GRANT OF 50% COST 1369.06",11/09/2019,0000449140,"1,293.28",Revenue,DLP SERVICES (NORTHERN) LTD,132682
South Ribble Council,http://statistics.data.gov.uk/doc/local-authority/30UN,Property Services,Rep & Maint Fixed Plant,2032,Call out to the Civic centre to identify the fault and repair the passenger lift,25/09/2019,0000449710,447.50,Revenue,E A Foulds Limited,131427
South Ribble Council,http://statistics.data.gov.uk/doc/local-authority/30UN,Information Services,Peripherals,4260,01-Sep-19,06/09/2019,0000449425,"2,734.69",Revenue,EE Ltd,131653
South Ribble Council,http://statistics.data.gov.uk/doc/local-authority/30UN,Information Services,Peripherals,4260,non vat,06/09/2019,0000449425,57.77,Revenue,EE Ltd,131653
South Ribble Council,http://statistics.data.gov.uk/doc/local-authority/30UN,Area 2 - Waste Transport/Eastern & Central Teams,External Contractors Charges,4570,1 spec repair  TMR02A3 JFC13101,06/09/2019,0000449398,300.78,Revenue,Elite Hydraulic Services Limited,132660
South Ribble Council,http://statistics.data.gov.uk/doc/local-authority/30UN,Area 2 - Waste Transport/Eastern & Central Teams,Materials General,4040,"1x bin lift, VU11 HSZ, JFC13081 (NAME REDACTED)",11/09/2019,0000449509,500.00,Revenue,Euro Municipals Ltd,132810
South Ribble Council,http://statistics.data.gov.uk/doc/local-authority/30UN,Area 2 - Waste Transport/Eastern & Central Teams,Printing,4127,Green Waste Permit Printing and Distribution 2019/20,20/09/2019,0000449716,301.21,Revenue,Euro Print Labels,132447
South Ribble Council,http://statistics.data.gov.uk/doc/local-authority/30UN,Area 2 - Waste Transport/Eastern & Central Teams,Materials General,4040,ADJUSTING RODS BIN 1111,04/09/2019,0000449296,188.88,Revenue,F R SHARROCK LTD,00034539
South Ribble Council,http://statistics.data.gov.uk/doc/local-authority/30UN,Area 2 - Waste Transport/Eastern & Central Teams,Materials General,4040,SCRAPER WIRES BIN 1060,04/09/2019,0000449296,141.52,Revenue,F R SHARROCK LTD,00034539
South Ribble Council,http://statistics.data.gov.uk/doc/local-authority/30UN,Area 2 - Waste Transport/Eastern & Central Teams,Materials General,4040,SOLE PLATE SCREWS BIN 1114,04/09/2019,0000449296,13.60,Revenue,F R SHARROCK LTD,00034539
South Ribble Council,http://statistics.data.gov.uk/doc/local-authority/30UN,Area 2 - Waste Transport/Eastern & Central Teams,Materials General,4040,PIVOT BOLTS BIN 1122,04/09/2019,0000449296,58.69,Revenue,F R SHARROCK LTD,00034539
South Ribble Council,http://statistics.data.gov.uk/doc/local-authority/30UN,Area 2 - Waste Transport/Eastern & Central Teams,Materials General,4040,SOLE PLATES BIN 1265,04/09/2019,0000449296,190.53,Revenue,F R SHARROCK LTD,00034539
South Ribble Council,http://statistics.data.gov.uk/doc/local-authority/30UN,Revenues Plus,Balance Sheet,0001,,06/09/2019,0000449396,342.75,Revenue,NAME REDACTED,132931
South Ribble Council,http://statistics.data.gov.uk/doc/local-authority/30UN,Area 2 - Waste Transport/Eastern & Central Teams,External Contractors Charges,4570,Residual Waste Collections August 2019,18/09/2019,0000449440,"45,660.96",Revenue,FCC Environment Services (UK) Ltd,131612
South Ribble Council,http://statistics.data.gov.uk/doc/local-authority/30UN,Area 2 - Waste Transport/Eastern & Central Teams,External Contractors Charges,4570,Dry recyclable collections Non terraced August 2019,18/09/2019,0000449440,"46,746.51",Revenue,FCC Environment Services (UK) Ltd,131612
South Ribble Council,http://statistics.data.gov.uk/doc/local-authority/30UN,Area 2 - Waste Transport/Eastern & Central Teams,External Contractors Charges,4570,Dry recyclable Terraced August 2019,18/09/2019,0000449440,"2,224.41",Revenue,FCC Environment Services (UK) Ltd,131612
South Ribble Council,http://statistics.data.gov.uk/doc/local-authority/30UN,Area 2 - Waste Transport/Eastern & Central Teams,External Contractors Charges,4570,Organic waste collections Non Terraced August 2019,18/09/2019,0000449440,"32,371.11",Revenue,FCC Environment Services (UK) Ltd,131612
South Ribble Council,http://statistics.data.gov.uk/doc/local-authority/30UN,Area 2 - Waste Transport/Eastern & Central Teams,External Contractors Charges,4570,Schedule 2 collections August 2019,18/09/2019,0000449440,"1,860.35",Revenue,FCC Environment Services (UK) Ltd,131612
South Ribble Council,http://statistics.data.gov.uk/doc/local-authority/30UN,Area 2 - Waste Transport/Eastern & Central Teams,External Contractors Charges,4570,Commercial Waste Collections August 2019,18/09/2019,0000449440,"7,249.95",Revenue,FCC Environment Services (UK) Ltd,131612
South Ribble Council,http://statistics.data.gov.uk/doc/local-authority/30UN,Area 2 - Waste Transport/Eastern & Central Teams,External Contractors Charges,4570,Bulky waste collections August 2019,18/09/2019,0000449440,"1,005.57",Revenue,FCC Environment Services (UK) Ltd,131612
South Ribble Council,http://statistics.data.gov.uk/doc/local-authority/30UN,Area 2 - Waste Transport/Eastern & Central Teams,External Contractors Charges,4570,WEEE collections August 2019,18/09/2019,0000449440,377.48,Revenue,FCC Environment Services (UK) Ltd,131612
South Ribble Council,http://statistics.data.gov.uk/doc/local-authority/30UN,Area 2 - Waste Transport/Eastern & Central Teams,External Contractors Charges,4570,Clinical waste collections August 2019,18/09/2019,0000449440,643.04,Revenue,FCC Environment Services (UK) Ltd,131612
South Ribble Council,http://statistics.data.gov.uk/doc/local-authority/30UN,Area 2 - Waste Transport/Eastern & Central Teams,External Contractors Charges,4570,Replacement Bins August 2019,18/09/2019,0000449440,"5,000.00",Revenue,FCC Environment Services (UK) Ltd,131612
South Ribble Council,http://statistics.data.gov.uk/doc/local-authority/30UN,Area 2 - Waste Transport/Eastern & Central Teams,External Contractors Charges,4570,Additional Properties August 2019,18/09/2019,0000449440,"2,941.70",Revenue,FCC Environment Services (UK) Ltd,131612
South Ribble Council,http://statistics.data.gov.uk/doc/local-authority/30UN,Area 2 - Waste Transport/Eastern & Central Teams,External Contractors Charges,4570,Additional bulky waste collections August 2019,11/09/2019,0000449441,657.36,Revenue,FCC Environment Services (UK) Ltd,131612
South Ribble Council,http://statistics.data.gov.uk/doc/local-authority/30UN,Area 2 - Waste Transport/Eastern & Central Teams,External Contractors Charges,4570,Additional WEEE collections August 2019,11/09/2019,0000449441,514.20,Revenue,FCC Environment Services (UK) Ltd,131612
South Ribble Council,http://statistics.data.gov.uk/doc/local-authority/30UN,Area 2 - Waste Transport/Eastern & Central Teams,Balance Sheet,0030,Recycling - Retention Claim Back January - June 2019,18/09/2019,0000449458,"22,931.27",Revenue,FCC Environment Services (UK) Ltd,131612
South Ribble Council,http://statistics.data.gov.uk/doc/local-authority/30UN,Area 2 - Waste Transport/Eastern & Central Teams,Balance Sheet,0030,Refuse - Retention Claim Back January - June 2019,18/09/2019,0000449458,"16,712.41",Revenue,FCC Environment Services (UK) Ltd,131612
South Ribble Council,http://statistics.data.gov.uk/doc/local-authority/30UN,Area 2 - Waste Transport/Eastern & Central Teams,Balance Sheet,0030,Clinical Waste - Retention Claim Back January - June 2019,18/09/2019,0000449458,82.75,Revenue,FCC Environment Services (UK) Ltd,131612
South Ribble Council,http://statistics.data.gov.uk/doc/local-authority/30UN,Area 2 - Waste Transport/Eastern & Central Teams,Balance Sheet,0030,Bulky Waste - Retention Claim Back January - June 2019,18/09/2019,0000449458,224.18,Revenue,FCC Environment Services (UK) Ltd,131612
South Ribble Council,http://statistics.data.gov.uk/doc/local-authority/30UN,Chief Executive`s Management,Professional Fees,4520,Graphic Design � Corporate Plan,11/09/2019,0000449127,352.00,Revenue,Fertile Frog Ltd,132727
South Ribble Council,http://statistics.data.gov.uk/doc/local-authority/30UN,Neighbourhood Admin & Support,Materials General,4040,FOOTBALL PITCH LINE MARKER PAINT 10LTRS - PITCHMARKER Q2,25/09/2019,0000449553,730.80,Revenue,Fleet Line Markers Limited,131942
South Ribble Council,http://statistics.data.gov.uk/doc/local-authority/30UN,Neighbourhood Admin & Support,Vehicle Running Costs,3131,FUEL W/C 02/09/2019,18/09/2019,0000449596,314.00,Revenue,Fuel Card Services,132365
South Ribble Council,http://statistics.data.gov.uk/doc/local-authority/30UN,Environmental Health,Agency Fees,1121,NAME REDACTED for 3 months per NAME REDACTED/NAME REDACTED.,18/09/2019,0000449251,768.00,Revenue,G2 Recruitment Solutions,132684
South Ribble Council,http://statistics.data.gov.uk/doc/local-authority/30UN,Environmental Health,Agency Fees,1121,NAME REDACTED for 3 months per NAME REDACTED/NAME REDACTED.,25/09/2019,0000449410,512.00,Revenue,G2 Recruitment Solutions,132684
South Ribble Council,http://statistics.data.gov.uk/doc/local-authority/30UN,Healthy Communities,Materials General,4040,15 x size 3 footballs 30 x size 4 footballs Total cost 281.25,18/09/2019,0000449555,281.25,Revenue,Galaxy,132430
South Ribble Council,http://statistics.data.gov.uk/doc/local-authority/30UN,Planning,Operational Furniture & Equip,4010,Printhead for the HP T3500 plotter HP 727 Printhead,25/09/2019,0000448770,291.07,Revenue,GCS UK ASSOCIATES LTD,130671
South Ribble Council,http://statistics.data.gov.uk/doc/local-authority/30UN,HR & Communications,Training Expense-Course Fees,1408,GONG BATH SESSIONS AT THE HEALTH & WELLBEING DAY ON 16 JULY 2019,25/09/2019,0000449750,280.00,Revenue,GO GONGS,132829
South Ribble Council,http://statistics.data.gov.uk/doc/local-authority/30UN,Area 2 - Waste Transport/Eastern & Central Teams,Materials General,4040,VARIOUS FILTERS,20/09/2019,0000449639,411.06,Revenue,H & J SERVICES LTD,00114446
South Ribble Council,http://statistics.data.gov.uk/doc/local-authority/30UN,Neighbourhood Admin & Support,Vehicle Running Costs,3134,2000 LT X GAS OIL (TANK 2) @ 58.47 PPL,06/09/2019,0000449351,"1,166.48",Revenue,Hall Fuels trading name of WFL (UK) Ltd,00116758
South Ribble Council,http://statistics.data.gov.uk/doc/local-authority/30UN,Neighbourhood Admin & Support,Vehicle Running Costs,3132,15000LT X DIESEL (TANK 1) @ 103.18 PPL,06/09/2019,0000449355,"15,496.66",Revenue,Hall Fuels trading name of WFL (UK) Ltd,00116758
South Ribble Council,http://statistics.data.gov.uk/doc/local-authority/30UN,Neighbourhood Admin & Support,Vehicle Running Costs,3132,15000LT X DIESEL (TANK 1) @ 103.31 PPL,25/09/2019,0000449653,"15,534.15",Revenue,Hall Fuels trading name of WFL (UK) Ltd,00116758
South Ribble Council,http://statistics.data.gov.uk/doc/local-authority/30UN,Area 3 - Parks/Leyland East West,Capital Expenditure,C230,SUPPLY AND INSTALLATION OF HEATING SYSTEM (Glass house section only),13/09/2019,0000448969,"3,973.00",Revenue,HARRIER GARDEN DEVELOPMENTS LTD,132858
South Ribble Council,http://statistics.data.gov.uk/doc/local-authority/30UN,Shared Assurance Services,Agency Fees,1121,NAME REDACTED - Temporary Head of Shared Assurance Services for week ending period 19/04/2019 - 01/11/2019 ,04/09/2019,0000449101,"1,698.02",Revenue,Hays Specialist Recruitment Ltd,132288
South Ribble Council,http://statistics.data.gov.uk/doc/local-authority/30UN,Shared Assurance Services,Agency Fees,1121,NAME REDACTED - Temporary Head of Shared Assurance Services for week ending period 19/04/2019 - 01/11/2019 ,04/09/2019,0000449102,"2,472.21",Revenue,Hays Specialist Recruitment Ltd,132288
South Ribble Council,http://statistics.data.gov.uk/doc/local-authority/30UN,Shared Assurance Services,Agency Fees,1121,NAME REDACTED - Temporary Head of Shared Assurance Services for week ending period 19/04/2019 - 01/11/2019,04/09/2019,0000449103,"2,051.44",Revenue,Hays Specialist Recruitment Ltd,132288
South Ribble Council,http://statistics.data.gov.uk/doc/local-authority/30UN,Shared Assurance Services,Agency Fees,1121,NAME REDACTED - Temporary Head of Shared Assurance Services for week ending period 19/04/2019 - 01/11/2019 ,04/09/2019,0000449105,425.94,Revenue,Hays Specialist Recruitment Ltd,132288
South Ribble Council,http://statistics.data.gov.uk/doc/local-authority/30UN,HR & Communications,Agency Fees,1121,PLACEMENT FEE FOR NAME REDACTED START DATE 27 AUGUST 2019,27/09/2019,0000449871,"3,600.00",Revenue,Hays Specialist Recruitment Ltd,132288
South Ribble Council,http://statistics.data.gov.uk/doc/local-authority/30UN,Shared Financial Services,Balance Sheet,0140,,13/09/2019,0000448869,936.00,Revenue,HM REVENUE & CUSTOMS,00024837
South Ribble Council,http://statistics.data.gov.uk/doc/local-authority/30UN,Shared Financial Services,Balance Sheet,0140,,13/09/2019,0000449186,600.00,Revenue,HM REVENUE & CUSTOMS,00024837
South Ribble Council,http://statistics.data.gov.uk/doc/local-authority/30UN,Area 2 - Waste Transport/Eastern & Central Teams,Materials General,4040,Hardox Steel VO65 KRE JFC12869,04/09/2019,0000449364,998.60,Revenue,Holdens CVE Limited,132119
South Ribble Council,http://statistics.data.gov.uk/doc/local-authority/30UN,Area 2 - Waste Transport/Eastern & Central Teams,Materials General,4040,4 X SHEET METAL PJ62UCL JFC 13109,25/09/2019,0000449747,766.80,Revenue,Holdens CVE Limited,132119
South Ribble Council,http://statistics.data.gov.uk/doc/local-authority/30UN,Area 3 - Parks/Leyland East West,Capital Expenditure,C230,CANCELLED OUT BY CREDIT IN FULL,13/09/2019,0000447657,"5,102.00",Revenue,HYDE FLOORING CO LTD,00023605
South Ribble Council,http://statistics.data.gov.uk/doc/local-authority/30UN,Area 3 - Parks/Leyland East West,Capital Expenditure,C230,"Moss Side-Corridors and staircase. 1st floor-flooring. G Floor+MOT Wait Rm-remove flaking paint, scarify all remaining paint. Supply/fit Grimebus",13/09/2019,0000449359,"3,169.00",Revenue,HYDE FLOORING CO LTD,00023605
South Ribble Council,http://statistics.data.gov.uk/doc/local-authority/30UN,Area 3 - Parks/Leyland East West,Capital Expenditure,C230,Cost for works outside normal hours,13/09/2019,0000449359,382.00,Revenue,HYDE FLOORING CO LTD,00023605
South Ribble Council,http://statistics.data.gov.uk/doc/local-authority/30UN,Area 3 - Parks/Leyland East West,Grounds Maint Cntrctrs Chgs,4657,"CREATION OF 3D FLY THROUGH OF HURST GRANGE COACH HOUSE, PENWORTHAM",18/09/2019,0000449417,"1,350.00",Revenue,IWA ARCHITECTS LTD,00120087
South Ribble Council,http://statistics.data.gov.uk/doc/local-authority/30UN,Area 3 - Parks/Leyland East West,Grounds Maint Cntrctrs Chgs,4657,Professional fees for RIBA stages 3 and 4 for Hurst Grange Park Coach House,18/09/2019,0000449436,"7,890.00",Revenue,IWA ARCHITECTS LTD,00120087
South Ribble Council,http://statistics.data.gov.uk/doc/local-authority/30UN,Area 3 - Parks/Leyland East West,Grounds Maint Cntrctrs Chgs,4657,"SUPPLY, FIT BOILER, MIXING GROUP AND ASSOCAITED ITEMS AS PER EMAIL&QUOTE 122124 AT WORDEN PARK CONSERVATORY",18/09/2019,0000449197,"12,083.00",Revenue,JAMES MERCER GROUP LTD,00028587
South Ribble Council,http://statistics.data.gov.uk/doc/local-authority/30UN,Development Enterprise & Comm Mgnt,Rep & Maint Premises,2020,Annual Contract for 2019 - 2020 for the maintenance of the Trend BMS HVAC 4 x day visits (TBA) at the Civic Offices  as per quote C572 - R252,25/09/2019,0000449739,400.00,Revenue,JBC CONTROL SYSTEM,130816
South Ribble Council,http://statistics.data.gov.uk/doc/local-authority/30UN,Area 1 - Penwortham Western Parishes,Materials General,4040,RELOCATING 2 BUS SHELTERS FROM WALTON SUMMIT TO STANIFIELD LANE AND DUNKIRK LANE,20/09/2019,0000449685,"3,954.30",Revenue,JJ O`GRADY LTD,131277
South Ribble Council,http://statistics.data.gov.uk/doc/local-authority/30UN,Area 2 - Waste Transport/Eastern & Central Teams,Cap Vehicles,C440,road fund licence compacts,18/09/2019,0000449283,255.00,Revenue,JOHNSTON SWEEPERS LTD,00058926
South Ribble Council,http://statistics.data.gov.uk/doc/local-authority/30UN,Area 2 - Waste Transport/Eastern & Central Teams,Cap Vehicles,C440,"For supply and delivery of sweeper & training as per original proposal & quote with optional extras of air conditioning, and high dump hopper.",18/09/2019,0000449283,"129,279.00",Revenue,JOHNSTON SWEEPERS LTD,00058926
South Ribble Council,http://statistics.data.gov.uk/doc/local-authority/30UN,Area 2 - Waste Transport/Eastern & Central Teams,Materials General,4040,1 X FRONT WHEEL GX19DZF JFC 13229,20/09/2019,0000449641,298.70,Revenue,JOHNSTON SWEEPERS LTD,00058926
South Ribble Council,http://statistics.data.gov.uk/doc/local-authority/30UN,Area 2 - Waste Transport/Eastern & Central Teams,Materials General,4040,1 X REAR WHEEL GX19DZF JFC 13229,20/09/2019,0000449641,298.70,Revenue,JOHNSTON SWEEPERS LTD,00058926
South Ribble Council,http://statistics.data.gov.uk/doc/local-authority/30UN,Planning,Advertising,4841,Press notices for planning applications 2019/20,25/09/2019,0000449314,729.00,Revenue,JPI Media - JOHNSTON PUBLISHING (NORTH WEST),00011345
South Ribble Council,http://statistics.data.gov.uk/doc/local-authority/30UN,Planning,Advertising,4841,Press notices for planning applications 2019/20,25/09/2019,0000449511,729.00,Revenue,JPI Media - JOHNSTON PUBLISHING (NORTH WEST),00011345
South Ribble Council,http://statistics.data.gov.uk/doc/local-authority/30UN,Planning,Advertising,4841,Press notices for planning applications 2019/20,25/09/2019,0000449537,891.00,Revenue,JPI Media - JOHNSTON PUBLISHING (NORTH WEST),00011345
South Ribble Council,http://statistics.data.gov.uk/doc/local-authority/30UN,Neighbourhood Admin & Support,External Contractors Charges,4570,"Traffic Management and grass cutting To Longton (L2), Samlesbury (L2) and end of M65, @ 3,500 per cut commencing Monday 01/07/19",18/09/2019,0000448932,"3,500.00",Revenue,KAYS TRAFFIC MANAGEMENT LTD,00072342
South Ribble Council,http://statistics.data.gov.uk/doc/local-authority/30UN,Environmental Health,Materials General,4041,2x Chameleon Fly Killers CHA1X2014,06/09/2019,0000449193,164.14,Revenue,KILLGERM CHEMICALS LTD,00025894
South Ribble Council,http://statistics.data.gov.uk/doc/local-authority/30UN,Environmental Health,Materials General,4041,2x pack of 6 Chameleon Sticky Boards BOACHA850,06/09/2019,0000449193,15.68,Revenue,KILLGERM CHEMICALS LTD,00025894
South Ribble Council,http://statistics.data.gov.uk/doc/local-authority/30UN,Environmental Health,Materials General,4041,1x 5ltr bottle liquid wasp bait DOMEA005L,06/09/2019,0000449193,30.20,Revenue,KILLGERM CHEMICALS LTD,00025894
South Ribble Council,http://statistics.data.gov.uk/doc/local-authority/30UN,Environmental Health,Materials General,4041,10 x Flea Trap,06/09/2019,0000449193,100.00,Revenue,KILLGERM CHEMICALS LTD,00025894
South Ribble Council,http://statistics.data.gov.uk/doc/local-authority/30UN,Environmental Health,Materials General,4041,4x 6pack of flea sticky pads,06/09/2019,0000449193,21.80,Revenue,KILLGERM CHEMICALS LTD,00025894
South Ribble Council,http://statistics.data.gov.uk/doc/local-authority/30UN,Environmental Health,Materials General,4041,10x Flea Bulb (Screw),06/09/2019,0000449193,11.60,Revenue,KILLGERM CHEMICALS LTD,00025894
South Ribble Council,http://statistics.data.gov.uk/doc/local-authority/30UN,Area 2 - Waste Transport/Eastern & Central Teams,Materials General,4040,AIRBAG VU11HSZ JFC 12837,18/09/2019,0000449562,344.43,Revenue,lancashire Bus and Truck Parts Limited,132511
South Ribble Council,http://statistics.data.gov.uk/doc/local-authority/30UN,Housing,Cap Grant- Improve Grants,C570,DFG WORKS TO SUPPLY AND INSTALL STAIRLIFT AS PER QUOTE SUPPLIED OF 6488.00. COST 6488.00 ,11/09/2019,0000449067,"6,348.00",Revenue,LANCS COUNTY COUNCIL,00041645
South Ribble Council,http://statistics.data.gov.uk/doc/local-authority/30UN,Legal,Other Local Authorities,4530,LAND CHARGES - JULY 2019,06/09/2019,0000449385,"1,006.50",Revenue,LANCS COUNTY COUNCIL,00041645
South Ribble Council,http://statistics.data.gov.uk/doc/local-authority/30UN,Housing,Cap Grant- Improve Grants,C570,DFG WORKS SUPPLY AND INSTALL STAIRLIFT AT ADDRESS REDACTED AS PER QUOTE SUPPLIED OF 3564.00 GRANT COST 3564.00,18/09/2019,0000449692,"3,564.00",Revenue,LANCS COUNTY COUNCIL,00041645
South Ribble Council,http://statistics.data.gov.uk/doc/local-authority/30UN,Housing,Cap Grant- Improve Grants,C570,DFG WORKS TO SUPPLY AND REPLACE A STAIRLIFT AT ADDRESS REDACTED QUOTE 5990.00 CLIENT 1181.64 GRANT 4808.36,25/09/2019,0000449731,"4,638.36",Revenue,LANCS COUNTY COUNCIL,00041645
South Ribble Council,http://statistics.data.gov.uk/doc/local-authority/30UN,Housing,Cap Grant- Improve Grants,C570,DFG WORKS TO SUPPLY AND INSTALL A STAIRLIFT AT ADDRESS REDACTED AS PER QUOTE SUPPLIED OF 4215.00 GRANT 4215.00,27/09/2019,0000449822,"4,215.00",Revenue,LANCS COUNTY COUNCIL,00041645
South Ribble Council,http://statistics.data.gov.uk/doc/local-authority/30UN,Scrutiny,Subs to Statutory Bodies,4720,RENEWAL OF BRONZE CORPORATE MEMBERSHIP FOR 2019-2020,25/09/2019,0000449761,500.00,Revenue,LANCS WILDLIFE TRUST,00027009
South Ribble Council,http://statistics.data.gov.uk/doc/local-authority/30UN,Regeneration,Advertising,4842,Worden Hall Filming,04/09/2019,0000449284,400.00,Revenue,Lawrence Clift Photography,132005
South Ribble Council,http://statistics.data.gov.uk/doc/local-authority/30UN,Healthy Communities,Grants to Vol Bodies,4711,coach development funding,25/09/2019,0000449766,250.00,Revenue,Leyland Cricket Academy,132640
South Ribble Council,http://statistics.data.gov.uk/doc/local-authority/30UN,Development Enterprise & Comm Mgnt,Other Misc,4851,Please supply children`s activities for Taste of Leyland 2019 at Leyland Market  350.00 as requested by NAME REDACTED,04/09/2019,0000449256,340.00,Revenue,Magical Story Jars,132656
South Ribble Council,http://statistics.data.gov.uk/doc/local-authority/30UN,Housing,Cap Grant- Improve Grants,C570,"DFG WORKS FOR LEVEL ACCESS BATHROOM ATADDRESS REDACTED. New progress property, 50%  to be paid via the grant is 1824.96",11/09/2019,0000449081,"1,444.24",Revenue,MAHONEY CONTRACTORS LTD,131271
South Ribble Council,http://statistics.data.gov.uk/doc/local-authority/30UN,Housing,Cap Grant- Improve Grants,C570,"DFG WORKS FOR LEVEL ACCESS BATHROOM AT ADDRESS REDACTED. New progress property, 50%  to be paid via the grant is 1240.00",18/09/2019,0000449693,"1,240.00",Revenue,MAHONEY CONTRACTORS LTD,131271
South Ribble Council,http://statistics.data.gov.uk/doc/local-authority/30UN,Neighbourhood Admin & Support,Materials General,4040,BALMORAL ROAD,18/09/2019,0000449120,168.00,Revenue,Main Street Signs Ltd,131922
South Ribble Council,http://statistics.data.gov.uk/doc/local-authority/30UN,Neighbourhood Admin & Support,Materials General,4040,KENT AVENUE,18/09/2019,0000449120,40.00,Revenue,Main Street Signs Ltd,131922
South Ribble Council,http://statistics.data.gov.uk/doc/local-authority/30UN,Neighbourhood Admin & Support,Materials General,4040,SANDRINGHAM ROAD,18/09/2019,0000449120,90.00,Revenue,Main Street Signs Ltd,131922
South Ribble Council,http://statistics.data.gov.uk/doc/local-authority/30UN,Neighbourhood Admin & Support,Materials General,4040,DEVON CLOSE  T,18/09/2019,0000449120,43.00,Revenue,Main Street Signs Ltd,131922
South Ribble Council,http://statistics.data.gov.uk/doc/local-authority/30UN,Neighbourhood Admin & Support,Materials General,4040,BROWNEDGE CLOSE,18/09/2019,0000449120,88.00,Revenue,Main Street Signs Ltd,131922
South Ribble Council,http://statistics.data.gov.uk/doc/local-authority/30UN,Neighbourhood Admin & Support,Materials General,4040,TODD LANE NORTH    136 - 164,18/09/2019,0000449120,50.00,Revenue,Main Street Signs Ltd,131922
South Ribble Council,http://statistics.data.gov.uk/doc/local-authority/30UN,Neighbourhood Admin & Support,Materials General,4040,KILNGATE,18/09/2019,0000449120,76.00,Revenue,Main Street Signs Ltd,131922
South Ribble Council,http://statistics.data.gov.uk/doc/local-authority/30UN,Neighbourhood Admin & Support,Materials General,4040,THE DOULTONS  T,18/09/2019,0000449120,44.00,Revenue,Main Street Signs Ltd,131922
South Ribble Council,http://statistics.data.gov.uk/doc/local-authority/30UN,Neighbourhood Admin & Support,Materials General,4040,DENBY CLOSE   T,18/09/2019,0000449120,43.00,Revenue,Main Street Signs Ltd,131922
South Ribble Council,http://statistics.data.gov.uk/doc/local-authority/30UN,Neighbourhood Admin & Support,Materials General,4040,ST MARY`S CLOSE,18/09/2019,0000449120,43.00,Revenue,Main Street Signs Ltd,131922
South Ribble Council,http://statistics.data.gov.uk/doc/local-authority/30UN,Neighbourhood Admin & Support,Materials General,4040,WINDSOR ROAD   T,18/09/2019,0000449120,44.00,Revenue,Main Street Signs Ltd,131922
South Ribble Council,http://statistics.data.gov.uk/doc/local-authority/30UN,Neighbourhood Admin & Support,Materials General,4040,HEY END,18/09/2019,0000449120,36.00,Revenue,Main Street Signs Ltd,131922
South Ribble Council,http://statistics.data.gov.uk/doc/local-authority/30UN,Neighbourhood Admin & Support,Materials General,4040,BRINDLE FOLD   T,18/09/2019,0000449120,44.00,Revenue,Main Street Signs Ltd,131922
South Ribble Council,http://statistics.data.gov.uk/doc/local-authority/30UN,Neighbourhood Admin & Support,Materials General,4040,KELLET LANE,18/09/2019,0000449120,40.00,Revenue,Main Street Signs Ltd,131922
South Ribble Council,http://statistics.data.gov.uk/doc/local-authority/30UN,Neighbourhood Admin & Support,Materials General,4040,LONG MOSS LANE,18/09/2019,0000449120,42.00,Revenue,Main Street Signs Ltd,131922
South Ribble Council,http://statistics.data.gov.uk/doc/local-authority/30UN,Neighbourhood Admin & Support,Materials General,4040,HAMPSHIRE ROAD,18/09/2019,0000449120,43.00,Revenue,Main Street Signs Ltd,131922
South Ribble Council,http://statistics.data.gov.uk/doc/local-authority/30UN,Neighbourhood Admin & Support,Materials General,4040,CAIRNDALE ROAD,18/09/2019,0000449120,44.00,Revenue,Main Street Signs Ltd,131922
South Ribble Council,http://statistics.data.gov.uk/doc/local-authority/30UN,Neighbourhood Admin & Support,Materials General,4040,DELIVERY CHARGE,18/09/2019,0000449120,67.50,Revenue,Main Street Signs Ltd,131922
South Ribble Council,http://statistics.data.gov.uk/doc/local-authority/30UN,Neighbourhood Admin & Support,Materials General,4040,BARNFIELD  T,18/09/2019,0000449120,12.00,Revenue,Main Street Signs Ltd,131922
South Ribble Council,http://statistics.data.gov.uk/doc/local-authority/30UN,Property Services,Rep & Maint Premises,2020,Please attend the Civic Centre to undertake works to the roof as per quotation JEH/E/6568,06/09/2019,0000449192,"1,150.00",Revenue,MAINCOAT LTD,00099244
South Ribble Council,http://statistics.data.gov.uk/doc/local-authority/30UN,Development Enterprise & Comm Mgnt,Other Misc,4851,"Marketing Lancashire campaigns for events 2019: �Come on in� @ 150, Social Media package @ 150   300",04/09/2019,0000449248,300.00,Revenue,MARKETING LANCASHIRE LIMITED,00089885
South Ribble Council,http://statistics.data.gov.uk/doc/local-authority/30UN,Area 2 - Waste Transport/Eastern & Central Teams,External Contractors Charges,4570,Recover vehicle from Chorley Depot - VU60 HLE - JFC13077,13/09/2019,0000449315,262.00,Revenue,MILLERS OF LONGTON LTD,00028642
South Ribble Council,http://statistics.data.gov.uk/doc/local-authority/30UN,Area 2 - Waste Transport/Eastern & Central Teams,External Contractors Charges,4570,Vehicle recovery Birch Road Chorley VU60 HLE JFC13110,13/09/2019,0000449339,301.50,Revenue,MILLERS OF LONGTON LTD,00028642
South Ribble Council,http://statistics.data.gov.uk/doc/local-authority/30UN,Legal,Legal,4821,PROFESSIONAL ADVICE WITH REGARD TO LAND ADDRESS REDACTED (PLANNING),18/09/2019,0000449583,"1,012.50",Revenue,Mr Alan Evans,131944
South Ribble Council,http://statistics.data.gov.uk/doc/local-authority/30UN,Legal,Legal,4821,FURTHER ADVICE WITH REGARD TO CLEUD APPLICATION - PENWORTHAM RESIDENTIAL PARK (2.5 HRS),11/09/2019,0000449450,337.50,Revenue,MR ANTHONY GILL,130791
South Ribble Council,http://statistics.data.gov.uk/doc/local-authority/30UN,Revenues Plus,Balance Sheet,0001,,04/09/2019,0000449280,451.34,Revenue,NAME REDACTED,132930
South Ribble Council,http://statistics.data.gov.uk/doc/local-authority/30UN,Area 2 - Waste Transport/Eastern & Central Teams,External Contractors Charges,4570,Service Wash YD19 ATY JFC13161,11/09/2019,0000449431,65.00,Revenue,NAYLORS TRANSPORT (LEYLAND) ltd,00114828
South Ribble Council,http://statistics.data.gov.uk/doc/local-authority/30UN,Area 2 - Waste Transport/Eastern & Central Teams,External Contractors Charges,4570,Service Wash YA19 NGN JFC13164,11/09/2019,0000449431,65.00,Revenue,NAYLORS TRANSPORT (LEYLAND) ltd,00114828
South Ribble Council,http://statistics.data.gov.uk/doc/local-authority/30UN,Area 2 - Waste Transport/Eastern & Central Teams,External Contractors Charges,4570,Service Wash YA19NKC JFC13165,11/09/2019,0000449431,65.00,Revenue,NAYLORS TRANSPORT (LEYLAND) ltd,00114828
South Ribble Council,http://statistics.data.gov.uk/doc/local-authority/30UN,Area 2 - Waste Transport/Eastern & Central Teams,External Contractors Charges,4570,Service Wash YD19 AYK JFC13168,11/09/2019,0000449431,65.00,Revenue,NAYLORS TRANSPORT (LEYLAND) ltd,00114828
South Ribble Council,http://statistics.data.gov.uk/doc/local-authority/30UN,Area 2 - Waste Transport/Eastern & Central Teams,External Contractors Charges,4570,Service Wash YD19 ATK JFC13169,11/09/2019,0000449431,65.00,Revenue,NAYLORS TRANSPORT (LEYLAND) ltd,00114828
South Ribble Council,http://statistics.data.gov.uk/doc/local-authority/30UN,Area 2 - Waste Transport/Eastern & Central Teams,External Contractors Charges,4570,Service Wash YD19 ATZ JFC13170,11/09/2019,0000449431,65.00,Revenue,NAYLORS TRANSPORT (LEYLAND) ltd,00114828
South Ribble Council,http://statistics.data.gov.uk/doc/local-authority/30UN,Area 2 - Waste Transport/Eastern & Central Teams,External Contractors Charges,4570,Service Wash VO65 KRF JFC13149,13/09/2019,0000449432,65.00,Revenue,NAYLORS TRANSPORT (LEYLAND) ltd,00114828
South Ribble Council,http://statistics.data.gov.uk/doc/local-authority/30UN,Area 2 - Waste Transport/Eastern & Central Teams,External Contractors Charges,4570,Service Wash VO65 KPZ JFC13150,13/09/2019,0000449432,65.00,Revenue,NAYLORS TRANSPORT (LEYLAND) ltd,00114828
South Ribble Council,http://statistics.data.gov.uk/doc/local-authority/30UN,Area 2 - Waste Transport/Eastern & Central Teams,External Contractors Charges,4570,Service Wash VK09 AHJ JFC13151,13/09/2019,0000449432,65.00,Revenue,NAYLORS TRANSPORT (LEYLAND) ltd,00114828
South Ribble Council,http://statistics.data.gov.uk/doc/local-authority/30UN,Area 2 - Waste Transport/Eastern & Central Teams,External Contractors Charges,4570,Service Wash PJ62 UCL JFC13152,13/09/2019,0000449432,65.00,Revenue,NAYLORS TRANSPORT (LEYLAND) ltd,00114828
South Ribble Council,http://statistics.data.gov.uk/doc/local-authority/30UN,Area 2 - Waste Transport/Eastern & Central Teams,External Contractors Charges,4570,Service Wash YP11 CFM JFC13153,13/09/2019,0000449432,65.00,Revenue,NAYLORS TRANSPORT (LEYLAND) ltd,00114828
South Ribble Council,http://statistics.data.gov.uk/doc/local-authority/30UN,Area 2 - Waste Transport/Eastern & Central Teams,External Contractors Charges,4570,Service Wash MX04 YNL JFC13154,13/09/2019,0000449432,65.00,Revenue,NAYLORS TRANSPORT (LEYLAND) ltd,00114828
South Ribble Council,http://statistics.data.gov.uk/doc/local-authority/30UN,Area 2 - Waste Transport/Eastern & Central Teams,External Contractors Charges,4570,Service Wash PO13 UUM JFC13155,13/09/2019,0000449432,65.00,Revenue,NAYLORS TRANSPORT (LEYLAND) ltd,00114828
South Ribble Council,http://statistics.data.gov.uk/doc/local-authority/30UN,Area 2 - Waste Transport/Eastern & Central Teams,External Contractors Charges,4570,Service Wash PJ62 UCH JFC13156,13/09/2019,0000449432,65.00,Revenue,NAYLORS TRANSPORT (LEYLAND) ltd,00114828
South Ribble Council,http://statistics.data.gov.uk/doc/local-authority/30UN,Area 2 - Waste Transport/Eastern & Central Teams,External Contractors Charges,4570,Service Wash VX18 KLC JFC13157 should be PJ62UCL,13/09/2019,0000449432,25.00,Revenue,NAYLORS TRANSPORT (LEYLAND) ltd,00114828
South Ribble Council,http://statistics.data.gov.uk/doc/local-authority/30UN,Area 2 - Waste Transport/Eastern & Central Teams,External Contractors Charges,4570,Service Wash PJ62 UCG JFC13158 should be 2nd wash for PF18JOV,13/09/2019,0000449432,65.00,Revenue,NAYLORS TRANSPORT (LEYLAND) ltd,00114828
South Ribble Council,http://statistics.data.gov.uk/doc/local-authority/30UN,Area 2 - Waste Transport/Eastern & Central Teams,External Contractors Charges,4570,Service Wash PJ62 UCM JFC13159,13/09/2019,0000449432,65.00,Revenue,NAYLORS TRANSPORT (LEYLAND) ltd,00114828
South Ribble Council,http://statistics.data.gov.uk/doc/local-authority/30UN,Area 2 - Waste Transport/Eastern & Central Teams,External Contractors Charges,4570,Service Wash PF18 JOV JFC13160,13/09/2019,0000449432,65.00,Revenue,NAYLORS TRANSPORT (LEYLAND) ltd,00114828
South Ribble Council,http://statistics.data.gov.uk/doc/local-authority/30UN,Area 2 - Waste Transport/Eastern & Central Teams,External Contractors Charges,4570,Service Wash VO65 KRD JFC13162,13/09/2019,0000449432,65.00,Revenue,NAYLORS TRANSPORT (LEYLAND) ltd,00114828
South Ribble Council,http://statistics.data.gov.uk/doc/local-authority/30UN,Regeneration,Capital Expenditure,C230,Plants for Dog Kennel Wood,04/09/2019,0000449338,"1,305.00",Revenue,NEWGATE NURSERIES,00069591
South Ribble Council,http://statistics.data.gov.uk/doc/local-authority/30UN,Democratic Services,Other Misc,4421,Use of the venue for the Local Elections on Thursday 2 May 2019.,13/09/2019,0000449588,150.00,Revenue,NORTHBROOK COMMUNITY PRIMARY SCHOOL,131485
South Ribble Council,http://statistics.data.gov.uk/doc/local-authority/30UN,Democratic Services,Other Misc,4421,USE OF VENUE FOR THE EUROPEAN ELECTION ON THURSDAY 23 MAY 2019.  ,13/09/2019,0000449588,150.00,Revenue,NORTHBROOK COMMUNITY PRIMARY SCHOOL,131485
South Ribble Council,http://statistics.data.gov.uk/doc/local-authority/30UN,Property Services,Operational Furniture & Equip,4010,Please supply furniture to the Civic Centre  as detailed in the quotation ref 54956,25/09/2019,0000449633,"3,995.00",Revenue,Northern Storage & Interiors Ltd,132814
South Ribble Council,http://statistics.data.gov.uk/doc/local-authority/30UN,Area 1 - Penwortham Western Parishes,Professional Fees,4514,DEPLOYMENT OF OFFICERS AUGUST 2019,11/09/2019,0000449445,"1,479.11",Revenue,NSL LTD,00116868
South Ribble Council,http://statistics.data.gov.uk/doc/local-authority/30UN,Area 1 - Penwortham Western Parishes,Other Misc,4855,CASH COLLECTIONS AND RINGO TRANSACTIONS AUGUST 2019,11/09/2019,0000449445,331.31,Revenue,NSL LTD,00116868
South Ribble Council,http://statistics.data.gov.uk/doc/local-authority/30UN,Area 1 - Penwortham Western Parishes,Other Misc,4855,RINGO CONVENIENCE CHARGE AUGUST 2019,11/09/2019,0000449445,176.65,Revenue,NSL LTD,00116868
South Ribble Council,http://statistics.data.gov.uk/doc/local-authority/30UN,Area 1 - Penwortham Western Parishes,Professional Fees,4526,PRICE PER CONTRACTED ITEMISED COLLECTION - OTHER,11/09/2019,0000449445,39.66,Revenue,NSL LTD,00116868
South Ribble Council,http://statistics.data.gov.uk/doc/local-authority/30UN,Information Services,Peripherals,4247,Combined Services for period 01/10/19 - 31/12/19,06/09/2019,0000449416,"4,945.15",Revenue,NVIRON LTD,00028781
South Ribble Council,http://statistics.data.gov.uk/doc/local-authority/30UN,Information Services,Peripherals,4247,Combined Services for period 01/10/19 - 31/12/19,06/09/2019,0000449418,"2,542.72",Revenue,NVIRON LTD,00028781
South Ribble Council,http://statistics.data.gov.uk/doc/local-authority/30UN,Regeneration,Other Misc,4851,50 x posters 500 x flyers,18/09/2019,0000449447,"1,020.00",Revenue,O`pen Office Solutions Ltd,131626
South Ribble Council,http://statistics.data.gov.uk/doc/local-authority/30UN,Regeneration,Other Misc,4851,vat item,18/09/2019,0000449447,20.00,Revenue,O`pen Office Solutions Ltd,131626
South Ribble Council,http://statistics.data.gov.uk/doc/local-authority/30UN,Regeneration,Advertising,4842,1000 x A5 Colour Double Sided Leaflet,18/09/2019,0000449486,340.00,Revenue,O`pen Office Solutions Ltd,131626
South Ribble Council,http://statistics.data.gov.uk/doc/local-authority/30UN,Area 2 - Waste Transport/Eastern & Central Teams,External Contractors Charges,4570,Milwakee High Torque M18 Wrench & Body Boot,13/09/2019,0000449448,395.00,Revenue,Parts Alliance Group Ltd T/A BBC Superfactors,132548
South Ribble Council,http://statistics.data.gov.uk/doc/local-authority/30UN,Property Services,Rep & Maint Premises,2023,To decorate Moss Side Community Centre as per quotation QU-0037,18/09/2019,0000449576,"5,912.50",Revenue,PDP PROPERTY SERVICES LTD,00106975
South Ribble Council,http://statistics.data.gov.uk/doc/local-authority/30UN,Healthy Communities,Advertising,4842,First and second payment for coordination of south ribble sports awards 2019 and 2nd payment of sponsorship services Total cost 3250,25/09/2019,0000449743,"1,750.00",Revenue,Pennine Events,131103
South Ribble Council,http://statistics.data.gov.uk/doc/local-authority/30UN,HR & Communications,Training Expense-Course Fees,1408,"20XSOUTH RIBBLE BOROUGH COUNCIL F4J RECRUITS, MANAGEMENT REFERRAL F2F OHA, WELLBEING COUNSELLING F2F",20/09/2019,0000449589,346.00,Revenue,People Asset Management,132492
South Ribble Council,http://statistics.data.gov.uk/doc/local-authority/30UN,HR & Communications,Training Expense-Course Fees,1408,wellbeing counselling,20/09/2019,0000449589,50.00,Revenue,People Asset Management,132492
South Ribble Council,http://statistics.data.gov.uk/doc/local-authority/30UN,HR & Communications,Training Expense-Course Fees,1408,MANAGEMENT REFERRAL F2F OHA (60) - 18.09.2019,27/09/2019,0000449873,87.00,Revenue,People Asset Management,132492
South Ribble Council,http://statistics.data.gov.uk/doc/local-authority/30UN,HR & Communications,Training Expense-Course Fees,1408,"3 X MASTER APP FULL DAY  - 19.09.2019, 16.09.2019, 17.09.2019",27/09/2019,0000449873,966.00,Revenue,People Asset Management,132492
South Ribble Council,http://statistics.data.gov.uk/doc/local-authority/30UN,Planning,Other Misc,485R,REFUND REC PP08047518V1MXA,25/09/2019,0000449621,462.00,Revenue,Planning Portal,132936
South Ribble Council,http://statistics.data.gov.uk/doc/local-authority/30UN,Information Services,Stationery,4133,"50,000 sheets Evolution Everyday A4 80gm, 15000 sheets Evolution Business A4 90gm, 1000  Premier Elements Fire White card A4 200gsm",04/09/2019,0000449261,413.60,Revenue,PREMIER PAPER GROUP LTD,00022606
South Ribble Council,http://statistics.data.gov.uk/doc/local-authority/30UN,Area 2 - Waste Transport/Eastern & Central Teams,Materials General,4040,TR 208,04/09/2019,0000449286,474.45,Revenue,PRESTON TYRE SPECIALISTS,00109516
South Ribble Council,http://statistics.data.gov.uk/doc/local-authority/30UN,Area 2 - Waste Transport/Eastern & Central Teams,Materials General,4040,"Supply and Fit Tyre 650/65 R 265, PO61 MJJ, JFC13122",18/09/2019,0000449517,"1,850.40",Revenue,PRESTON TYRE SPECIALISTS,00109516
South Ribble Council,http://statistics.data.gov.uk/doc/local-authority/30UN,Area 2 - Waste Transport/Eastern & Central Teams,Materials General,4040,2 Tyres GX19 DZF JFC13229,25/09/2019,0000449643,390.90,Revenue,PRESTON TYRE SPECIALISTS,00109516
South Ribble Council,http://statistics.data.gov.uk/doc/local-authority/30UN,Democratic Services,Other Misc,4970,"12,000 HEF OUTGOING ENVELOPES",04/09/2019,0000449381,373.00,Revenue,PRINT IMAGE NETWORK LTD,00089199
South Ribble Council,http://statistics.data.gov.uk/doc/local-authority/30UN,Housing,Contractors Charges 5,5313,Interim accommodation Void Loss 474.79 & 304.03 ( Last quarter) Total: 778.82,04/09/2019,0000449254,304.03,Revenue,PROGRESS CARE HOUSING ASSOC LTD,00003133
South Ribble Council,http://statistics.data.gov.uk/doc/local-authority/30UN,Housing,Contractors Charges 5,5313,Interim accommodation Void Loss 474.79 & 304.03 ( Last quarter) Total: 778.82,04/09/2019,0000449255,474.79,Revenue,PROGRESS CARE HOUSING ASSOC LTD,00003133
South Ribble Council,http://statistics.data.gov.uk/doc/local-authority/30UN,Property Services,Rep & Maint Premises,2020,Materials - Please dismantle existing benches and install new ones to the council garden at the civic centre as per quotation Q2504,18/09/2019,0000449556,770.00,Revenue,PSR & Sons Joiners & Building Contractors,132887
South Ribble Council,http://statistics.data.gov.uk/doc/local-authority/30UN,Property Services,Rep & Maint Premises,2020,Materials - Please supply & fit new hinges to the main door the IT server room as per quotation Q2504,18/09/2019,0000449556,30.00,Revenue,PSR & Sons Joiners & Building Contractors,132887
South Ribble Council,http://statistics.data.gov.uk/doc/local-authority/30UN,Property Services,Rep & Maint Premises,2020,Labour,18/09/2019,0000449556,84.00,Revenue,PSR & Sons Joiners & Building Contractors,132887
South Ribble Council,http://statistics.data.gov.uk/doc/local-authority/30UN,Property Services,Rep & Maint Premises,2020,Please attend and do works for the quotation LRS Q 2443 dated 17th July 2019 for NAME REDACTED,18/09/2019,0000449557,"6,000.00",Revenue,PSR & Sons Joiners & Building Contractors,132887
South Ribble Council,http://statistics.data.gov.uk/doc/local-authority/30UN,Property Services,Rep & Maint Premises,2020,LABOUR,18/09/2019,0000449557,"1,380.00",Revenue,PSR & Sons Joiners & Building Contractors,132887
South Ribble Council,http://statistics.data.gov.uk/doc/local-authority/30UN,Property Services,Rep & Maint Premises,2020,Materials -To supply & fit a new fire exit doors to Carr Street Community Centre as per quotation Q2524,18/09/2019,0000449563,498.50,Revenue,PSR & Sons Joiners & Building Contractors,132887
South Ribble Council,http://statistics.data.gov.uk/doc/local-authority/30UN,Property Services,Rep & Maint Premises,2020,materials - To supply & fit new fascia board to Carr Street Community Centre as per quotation Q2524,18/09/2019,0000449563,651.50,Revenue,PSR & Sons Joiners & Building Contractors,132887
South Ribble Council,http://statistics.data.gov.uk/doc/local-authority/30UN,Property Services,Rep & Maint Premises,2020,LABOUR,18/09/2019,0000449563,573.00,Revenue,PSR & Sons Joiners & Building Contractors,132887
South Ribble Council,http://statistics.data.gov.uk/doc/local-authority/30UN,Property Services,Rep & Maint Premises,2020,"materials - Please undertake the work to the gutters, sign & fascia boards at Leyland museum as per quotation Q2440",18/09/2019,0000449564,900.00,Revenue,PSR & Sons Joiners & Building Contractors,132887
South Ribble Council,http://statistics.data.gov.uk/doc/local-authority/30UN,Property Services,Rep & Maint Premises,2020,LABOUR,18/09/2019,0000449564,140.00,Revenue,PSR & Sons Joiners & Building Contractors,132887
South Ribble Council,http://statistics.data.gov.uk/doc/local-authority/30UN,Information Services,Postage,4292, Top -up payment franking machine  + reset fee & Royal mail underpayment charges 24/7/19 to 21/8/19,04/09/2019,0000449347,"9,101.62",Revenue,Purchase Power,00093923
South Ribble Council,http://statistics.data.gov.uk/doc/local-authority/30UN,Area 3 - Parks/Leyland East West,Contract Hire & Lease Costs,3212,Hire of 1.8T Excavator On hire 6.8.19 (for approx. 2 weeks),04/09/2019,0000449253,476.00,Revenue,Readyplant Limited,131535
South Ribble Council,http://statistics.data.gov.uk/doc/local-authority/30UN,Property Services,Rep & Maint Premises,2020,Please attend Worden Park to replace a manhole lid and empty the sceptic tank,13/09/2019,0000449519,100.00,Revenue,RED ROSE BUILDING MAINTENANCE,00085410
South Ribble Council,http://statistics.data.gov.uk/doc/local-authority/30UN,Property Services,Rep & Maint Premises,2020,materials,13/09/2019,0000449519,250.00,Revenue,RED ROSE BUILDING MAINTENANCE,00085410
South Ribble Council,http://statistics.data.gov.uk/doc/local-authority/30UN,Property Services,Rep & Maint Premises,2020,Please replace the broken flags at the Civic centre and construct a base for the outside furniture in the Council garden,13/09/2019,0000449521,240.00,Revenue,RED ROSE BUILDING MAINTENANCE,00085410
South Ribble Council,http://statistics.data.gov.uk/doc/local-authority/30UN,Property Services,Rep & Maint Premises,2020,materials,13/09/2019,0000449521,42.00,Revenue,RED ROSE BUILDING MAINTENANCE,00085410
South Ribble Council,http://statistics.data.gov.uk/doc/local-authority/30UN,Property Services,Rep & Maint Premises,2020,Annual Contract 2019/2020 for the service of grease trap at Civic Centre,18/09/2019,0000449600,305.00,Revenue,RED ROSE BUILDING MAINTENANCE,00085410
South Ribble Council,http://statistics.data.gov.uk/doc/local-authority/30UN,Property Services,Rep & Maint Premises,2020,Please attend Hurst Grange and empty the traps/cesspit as per NAME REDACTED instruction,18/09/2019,0000449601,550.00,Revenue,RED ROSE BUILDING MAINTENANCE,00085410
South Ribble Council,http://statistics.data.gov.uk/doc/local-authority/30UN,Property Services,Rep & Maint Premises,2020,INSPECT & JETTED Please attend Moss Side Depot to clear the pipework for ground floor toilets and CCTV to find what is causing the problem.,27/09/2019,0000449800,320.00,Revenue,RED ROSE BUILDING MAINTENANCE,00085410
South Ribble Council,http://statistics.data.gov.uk/doc/local-authority/30UN,Property Services,Rep & Maint Premises,2020,LABOUR  Please attend Moss Side depot to fit a new sealed manhole to the ground floor corridor.,27/09/2019,0000449800,240.00,Revenue,RED ROSE BUILDING MAINTENANCE,00085410
South Ribble Council,http://statistics.data.gov.uk/doc/local-authority/30UN,Homelessness,Contractors Charges 5,5311,"NAME REDACTED rent payment  October, November and December 2019",25/09/2019,0000449686,"5,624.90",Revenue,REDDY & CO,00108177
South Ribble Council,http://statistics.data.gov.uk/doc/local-authority/30UN,Homelessness,Contributions,4730,Agreed rent payment for NAME REDACTED ADDRESS REDACTED - as of week ending 20/9/19,25/09/2019,0000449687,"1,611.20",Revenue,REDDY & CO,00108177
South Ribble Council,http://statistics.data.gov.uk/doc/local-authority/30UN,Information Services,Lease Rental Charges,4036,,04/09/2019,0000449208,334.19,Revenue,RICOH (UK) LTD,00082976
South Ribble Council,http://statistics.data.gov.uk/doc/local-authority/30UN,Information Services,Stationery,413A,,04/09/2019,0000449208,115.53,Revenue,RICOH (UK) LTD,00082976
South Ribble Council,http://statistics.data.gov.uk/doc/local-authority/30UN,Information Services,Lease Rental Charges,4036,,04/09/2019,0000449209,"4,638.79",Revenue,RICOH (UK) LTD,00082976
South Ribble Council,http://statistics.data.gov.uk/doc/local-authority/30UN,Information Services,Stationery,413A,,04/09/2019,0000449209,"6,066.91",Revenue,RICOH (UK) LTD,00082976
South Ribble Council,http://statistics.data.gov.uk/doc/local-authority/30UN,Information Services,Lease Rental Charges,4036,,04/09/2019,0000449210,"1,492.80",Revenue,RICOH (UK) LTD,00082976
South Ribble Council,http://statistics.data.gov.uk/doc/local-authority/30UN,Area 2 - Waste Transport/Eastern & Central Teams,Contract Hire & Lease Costs,3212,Continued hire of Refuse collection Vehicle GN19 HKU. 1.8.19 - 31.8.19 (approx. 4.5 wks @ 895.00 per week) 75.00 collection,11/09/2019,0000449346,"3,938.00",Revenue,RIVERSIDE TRUCK RENTAL LTD,132867
South Ribble Council,http://statistics.data.gov.uk/doc/local-authority/30UN,Property Services,Other Misc,485C,1 mom,18/09/2019,0000449369,100.00,Revenue,ROUNDHOUSE PROPERTIES LTD,131973
South Ribble Council,http://statistics.data.gov.uk/doc/local-authority/30UN,Property Services,Other Misc,485C,2mom,18/09/2019,0000449369,100.00,Revenue,ROUNDHOUSE PROPERTIES LTD,131973
South Ribble Council,http://statistics.data.gov.uk/doc/local-authority/30UN,Property Services,Other Misc,485C,3mom,18/09/2019,0000449369,100.00,Revenue,ROUNDHOUSE PROPERTIES LTD,131973
South Ribble Council,http://statistics.data.gov.uk/doc/local-authority/30UN,Property Services,Other Misc,485C,4mom,18/09/2019,0000449369,100.00,Revenue,ROUNDHOUSE PROPERTIES LTD,131973
South Ribble Council,http://statistics.data.gov.uk/doc/local-authority/30UN,Property Services,Other Misc,485C,5mom,18/09/2019,0000449369,100.00,Revenue,ROUNDHOUSE PROPERTIES LTD,131973
South Ribble Council,http://statistics.data.gov.uk/doc/local-authority/30UN,Democratic Services,Postage,4291,Postage Costs (Non-Election),06/09/2019,0000449274,"2,114.81",Revenue,ROYAL MAIL GROUP PLC,00033543
South Ribble Council,http://statistics.data.gov.uk/doc/local-authority/30UN,Democratic Services,Postage,4291,Postage Costs (Non-Election),20/09/2019,0000449701,885.42,Revenue,ROYAL MAIL GROUP PLC,00033543
South Ribble Council,http://statistics.data.gov.uk/doc/local-authority/30UN,Revenues Plus,Contributions,4730,,09/09/2019,0000449205,136.50,Revenue,S R B C,00035046
South Ribble Council,http://statistics.data.gov.uk/doc/local-authority/30UN,Revenues Plus,Other Misc,4851,,09/09/2019,0000449205,20.00,Revenue,S R B C,00035046
South Ribble Council,http://statistics.data.gov.uk/doc/local-authority/30UN,Revenues Plus,Provisions,4310,,09/09/2019,0000449205,8.22,Revenue,S R B C,00035046
South Ribble Council,http://statistics.data.gov.uk/doc/local-authority/30UN,Revenues Plus,Provisions,4311,,09/09/2019,0000449205,4.67,Revenue,S R B C,00035046
South Ribble Council,http://statistics.data.gov.uk/doc/local-authority/30UN,Revenues Plus,Operational Furniture & Equip,4010,,09/09/2019,0000449205,10.00,Revenue,S R B C,00035046
South Ribble Council,http://statistics.data.gov.uk/doc/local-authority/30UN,Revenues Plus,Materials General,4040,,09/09/2019,0000449205,38.46,Revenue,S R B C,00035046
South Ribble Council,http://statistics.data.gov.uk/doc/local-authority/30UN,Revenues Plus,Other Misc,4851,,09/09/2019,0000449205,55.35,Revenue,S R B C,00035046
South Ribble Council,http://statistics.data.gov.uk/doc/local-authority/30UN,Revenues Plus,Other Misc,4851,,09/09/2019,0000449205,20.00,Revenue,S R B C,00035046
South Ribble Council,http://statistics.data.gov.uk/doc/local-authority/30UN,Area 2 - Waste Transport/Eastern & Central Teams,Materials General,4040,1 x 1000l ENERGISE (Hi foaming non-caustic vehicle wash),04/09/2019,0000449309,911.15,Revenue,Saanro International Ltd,132788
South Ribble Council,http://statistics.data.gov.uk/doc/local-authority/30UN,Environmental Health,Other Misc,4851,Meeting 17.7.19 - South Ribble Partnership - per NAME REDACTED.,18/09/2019,0000449319,436.10,Revenue,SAMLESBURY HALL,131246
South Ribble Council,http://statistics.data.gov.uk/doc/local-authority/30UN,Housing,Capital Expenditure,C230,Valuation of Leland Leisure Centre relating to Campus Project,25/09/2019,0000448997,"2,800.00",Revenue,Sanderson Weatherall LLP,132534
South Ribble Council,http://statistics.data.gov.uk/doc/local-authority/30UN,Housing,Balance Sheet,0030,Professional Services rendered in undertaking works in relation to Test Track,25/09/2019,0000448998,"1,016.67",Revenue,Sanderson Weatherall LLP,132534
South Ribble Council,http://statistics.data.gov.uk/doc/local-authority/30UN,Housing,Balance Sheet,0030,Professional services rendered in undertaking works in relation to Test Track,25/09/2019,0000448999,768.13,Revenue,Sanderson Weatherall LLP,132534
South Ribble Council,http://statistics.data.gov.uk/doc/local-authority/30UN,Housing,Balance Sheet,0030,non vat item,25/09/2019,0000448999,4.00,Revenue,Sanderson Weatherall LLP,132534
South Ribble Council,http://statistics.data.gov.uk/doc/local-authority/30UN,Property Services,Energy Costs,2303,1/7/19 to 31/7/19,04/09/2019,0000449207,902.24,Revenue,SCOTTISH HYDRO ELECTRIC,130051
South Ribble Council,http://statistics.data.gov.uk/doc/local-authority/30UN,Property Services,Energy Costs,2307,CCL,04/09/2019,0000449207,84.70,Revenue,SCOTTISH HYDRO ELECTRIC,130051
South Ribble Council,http://statistics.data.gov.uk/doc/local-authority/30UN,Property Services,Energy Costs,2303,15/5/19 to 13/8/19,04/09/2019,0000449231,"3,117.48",Revenue,SCOTTISH HYDRO ELECTRIC,130051
South Ribble Council,http://statistics.data.gov.uk/doc/local-authority/30UN,Property Services,Energy Costs,2307,CCL,04/09/2019,0000449231,204.11,Revenue,SCOTTISH HYDRO ELECTRIC,130051
South Ribble Council,http://statistics.data.gov.uk/doc/local-authority/30UN,Property Services,Energy Costs,2303,1/7/19 to 31/7/19,04/09/2019,0000449234,393.94,Revenue,SCOTTISH HYDRO ELECTRIC,130051
South Ribble Council,http://statistics.data.gov.uk/doc/local-authority/30UN,Property Services,Energy Costs,2307,CCL,04/09/2019,0000449234,28.83,Revenue,SCOTTISH HYDRO ELECTRIC,130051
South Ribble Council,http://statistics.data.gov.uk/doc/local-authority/30UN,Property Services,Energy Costs,2303,1/7/19 to 31/7/19,04/09/2019,0000449235,"3,050.01",Revenue,SCOTTISH HYDRO ELECTRIC,130051
South Ribble Council,http://statistics.data.gov.uk/doc/local-authority/30UN,Property Services,Energy Costs,2307,CCL,04/09/2019,0000449235,234.50,Revenue,SCOTTISH HYDRO ELECTRIC,130051
South Ribble Council,http://statistics.data.gov.uk/doc/local-authority/30UN,Property Services,Energy Costs,2303,15/5/19 to 13/8/19,04/09/2019,0000449242,"1,129.48",Revenue,SCOTTISH HYDRO ELECTRIC,130051
South Ribble Council,http://statistics.data.gov.uk/doc/local-authority/30UN,Property Services,Energy Costs,2307,CCL,04/09/2019,0000449242,76.05,Revenue,SCOTTISH HYDRO ELECTRIC,130051
South Ribble Council,http://statistics.data.gov.uk/doc/local-authority/30UN,Property Services,Energy Costs,2303,1/7/19 to 31/7/19,04/09/2019,0000449243,"1,671.28",Revenue,SCOTTISH HYDRO ELECTRIC,130051
South Ribble Council,http://statistics.data.gov.uk/doc/local-authority/30UN,Property Services,Energy Costs,2307,CCL,04/09/2019,0000449243,136.91,Revenue,SCOTTISH HYDRO ELECTRIC,130051
South Ribble Council,http://statistics.data.gov.uk/doc/local-authority/30UN,Property Services,Energy Costs,2303,1/8/19 to 31/8/19,27/09/2019,0000449659,417.21,Revenue,SCOTTISH HYDRO ELECTRIC,130051
South Ribble Council,http://statistics.data.gov.uk/doc/local-authority/30UN,Property Services,Energy Costs,2307,CCL,27/09/2019,0000449659,30.58,Revenue,SCOTTISH HYDRO ELECTRIC,130051
South Ribble Council,http://statistics.data.gov.uk/doc/local-authority/30UN,Property Services,Energy Costs,2303,30/5/19 to 31/8/19,27/09/2019,0000449660,"1,229.55",Revenue,SCOTTISH HYDRO ELECTRIC,130051
South Ribble Council,http://statistics.data.gov.uk/doc/local-authority/30UN,Property Services,Energy Costs,2307,CCL,27/09/2019,0000449660,93.28,Revenue,SCOTTISH HYDRO ELECTRIC,130051
South Ribble Council,http://statistics.data.gov.uk/doc/local-authority/30UN,Property Services,Energy Costs,2303,1/8/19 to 31/8/19,27/09/2019,0000449661,"2,952.38",Revenue,SCOTTISH HYDRO ELECTRIC,130051
South Ribble Council,http://statistics.data.gov.uk/doc/local-authority/30UN,Property Services,Energy Costs,2307,CCL,27/09/2019,0000449661,227.99,Revenue,SCOTTISH HYDRO ELECTRIC,130051
South Ribble Council,http://statistics.data.gov.uk/doc/local-authority/30UN,Property Services,Energy Costs,2303,1/8/19 to 31/8/19,27/09/2019,0000449667,"1,610.60",Revenue,SCOTTISH HYDRO ELECTRIC,130051
South Ribble Council,http://statistics.data.gov.uk/doc/local-authority/30UN,Property Services,Energy Costs,2307,CCL,27/09/2019,0000449667,132.70,Revenue,SCOTTISH HYDRO ELECTRIC,130051
South Ribble Council,http://statistics.data.gov.uk/doc/local-authority/30UN,Property Services,Energy Costs,2303,1/8/19 to 31/8/19,27/09/2019,0000449668,904.63,Revenue,SCOTTISH HYDRO ELECTRIC,130051
South Ribble Council,http://statistics.data.gov.uk/doc/local-authority/30UN,Property Services,Energy Costs,2307,CCL,27/09/2019,0000449668,70.07,Revenue,SCOTTISH HYDRO ELECTRIC,130051
South Ribble Council,http://statistics.data.gov.uk/doc/local-authority/30UN,Information Services,Peripherals,4245,"Option 2 - Battery Replacement - Weekend Hours 3420.00 and Option 3 - Battery Replacement - Dialog 100ER 322.00, as per quote 31634",04/09/2019,0000449336,"1,500.00",Revenue,SECURE POWER LTD,131336
South Ribble Council,http://statistics.data.gov.uk/doc/local-authority/30UN,HR & Communications,Training Expense-Course Fees,1402,Course: Homelessness & Allocations Law (Advanced) Date: 6 & 7th November 2019 Venue: Manchester Delegate: NAME REDACTED,20/09/2019,0000449582,300.00,Revenue,SHELTER PUBLICATIONS,00034568
South Ribble Council,http://statistics.data.gov.uk/doc/local-authority/30UN,Information Services,Professional Fees,4520,Shredding of Confidential Waste 2019/20,04/09/2019,0000449293,280.79,Revenue,SHRED-IT LTD,00109134
South Ribble Council,http://statistics.data.gov.uk/doc/local-authority/30UN,Information Services,Professional Fees,4520,Shredding of Confidential Waste 2019/20,18/09/2019,0000449490,326.30,Revenue,SHRED-IT LTD,00109134
South Ribble Council,http://statistics.data.gov.uk/doc/local-authority/30UN,Area 2 - Waste Transport/Eastern & Central Teams,Cap Vehicles,C440,Livery on 3 x Nissan Cabstars as per quote ref: TVB8658 / 3.,18/09/2019,0000449489,593.00,Revenue,SIGNS PRESTON LTD T/A SIGNS EXPRESS CENTRAL LANCS,131706
South Ribble Council,http://statistics.data.gov.uk/doc/local-authority/30UN,Area 3 - Parks/Leyland East West,Capital Expenditure,C230,Leadale Green PG,25/09/2019,0000449408,350.00,Revenue,SITE SURVEYING SERVICES LIMITED,130394
South Ribble Council,http://statistics.data.gov.uk/doc/local-authority/30UN,Area 3 - Parks/Leyland East West,Capital Expenditure,C230,Seven Stars PG,25/09/2019,0000449409,350.00,Revenue,SITE SURVEYING SERVICES LIMITED,130394
South Ribble Council,http://statistics.data.gov.uk/doc/local-authority/30UN,Property Services,Consultancy Fees,4532,Leisure Services Fee 2019/2020,06/09/2019,0000448553,"90,992.00",Revenue,SOUTH RIBBLE COMMUNITY LEISURE LTD,00094210
South Ribble Council,http://statistics.data.gov.uk/doc/local-authority/30UN,Community Safety,Other Misc,4851,Sports Hall hire for delivery of PNE kicks project dates include: Sept 2018 to Jun 2019,18/09/2019,0000449522,300.00,Revenue,SOUTH RIBBLE COMMUNITY LEISURE LTD,00094210
South Ribble Council,http://statistics.data.gov.uk/doc/local-authority/30UN,Shared Financial Services,Balance Sheet,0030,monthly deductions from Payroll,04/09/2019,0000449312,"1,495.85",Revenue,SOUTH RIBBLE LABOUR PARTY LOCAL GOVERNM,00120663
South Ribble Council,http://statistics.data.gov.uk/doc/local-authority/30UN,Area 2 - Waste Transport/Eastern & Central Teams,Materials General,4040,4 X ROLLERS BIN 1200A,06/09/2019,0000449304,290.40,Revenue,SPALDINGS,00070849
South Ribble Council,http://statistics.data.gov.uk/doc/local-authority/30UN,Area 2 - Waste Transport/Eastern & Central Teams,Materials General,4040,bottle blade,06/09/2019,0000449304,21.55,Revenue,SPALDINGS,00070849
South Ribble Council,http://statistics.data.gov.uk/doc/local-authority/30UN,Regeneration,Capital Expenditure,C230,NR reports for pools and sports halls for SRBC,06/09/2019,0000449423,"1,200.00",Revenue,SPORT ENGLAND,131198
South Ribble Council,http://statistics.data.gov.uk/doc/local-authority/30UN,Healthy Communities,Subs to Statutory Bodies,4720,To provide associate membership services for South Ribble Borough Council,18/09/2019,0000449484,500.00,Revenue,Sports & Recreation Trusts Association,132920
South Ribble Council,http://statistics.data.gov.uk/doc/local-authority/30UN,Democratic Services,Operational Furniture & Equip,4010,"PLEASE PROVIDE STAGE WITH CARPET, RISERS, HANDRAIL AND SKIRT ETC AS PER QUOTATION NUMBER: 42822",20/09/2019,0000449718,675.00,Revenue,STAGE CONCEPTS,132938
South Ribble Council,http://statistics.data.gov.uk/doc/local-authority/30UN,Property Services,Rents,2401,"2019 / 2020 rental fees for Forward industrial estate, Talbot Road, Leyland PR25 2ZJ. Property Ref 2710/081",25/09/2019,0000449375,"16,147.50",Revenue,STONEWELL PROPERTY COMPANY LTD,00118138
South Ribble Council,http://statistics.data.gov.uk/doc/local-authority/30UN,Area 2 - Waste Transport/Eastern & Central Teams,External Contractors Charges,4570,SPEC REPAIR - PO13UMM-- JFC13032,04/09/2019,0000449153,635.08,Revenue,TERBERG MATEC UK LTD,00058625
South Ribble Council,http://statistics.data.gov.uk/doc/local-authority/30UN,HR & Communications,Training Expense-Course Fees,1403,WORK BASED LEARING FEE - NAME REDACTED - 50173746,11/09/2019,0000449482,300.00,Revenue,THE CHARTERED INSTITUTE OF LEGAL EXECUTIVES,131354
South Ribble Council,http://statistics.data.gov.uk/doc/local-authority/30UN,Planning,Agency Fees,1121,Agency Worker NAME REDACTED - Enforcement,25/09/2019,0000449004,"1,665.00",Revenue,The Oyster Partnership,132919
South Ribble Council,http://statistics.data.gov.uk/doc/local-authority/30UN,HR & Communications,Training Expense-Course Fees,1408,6 SESSIONS OF THERAPY FOR NAME REDACTED,20/09/2019,0000449725,300.00,Revenue,THE THERAPY COMPANY,131955
South Ribble Council,http://statistics.data.gov.uk/doc/local-authority/30UN,Legal,Publications,4142,aldridge R63,06/09/2019,0000449384,528.00,Revenue,THOMSON REUTERS,00034979
South Ribble Council,http://statistics.data.gov.uk/doc/local-authority/30UN,Healthy Communities,Advertising,4842,"Afterschool leaflets/certificates - 16 different A5 Duplex leaflets on 150gsm - 4,500. 3 different certificates, one sided on 250gsm silk - 1550",06/09/2019,0000449376,539.00,Revenue,TOWNSEND PRINT SERVICES LTD,00037170
South Ribble Council,http://statistics.data.gov.uk/doc/local-authority/30UN,Area 2 - Waste Transport/Eastern & Central Teams,External Contractors Charges,4570,"3 x Driver ID Unit + 2 tags, 3 x connect 400 - SWIFT-CAN enabled, Training, Track n Trace with Driver Behaviour, 00002690-NAME REDACTED",04/09/2019,0000449045,300.00,Revenue,Trakm8 Limited,132857
South Ribble Council,http://statistics.data.gov.uk/doc/local-authority/30UN,Environmental Health,Professional Fees,4520,SCANNING OF LICENSING FILES,27/09/2019,0000449704,"3,220.00",Revenue,UK DOCUMENT IMAGING,00111999
South Ribble Council,http://statistics.data.gov.uk/doc/local-authority/30UN,Property Services,External Contractors Charges,4575,To supply buffet @ 7 per head for 30 on 29th August @ 15.30  to SRBC,13/09/2019,0000449466,210.00,Revenue,UNIVERSITY OF CENTRAL LANCASHIRE,131183
South Ribble Council,http://statistics.data.gov.uk/doc/local-authority/30UN,Property Services,External Contractors Charges,4575,To supply Hot meals @ 9.50 per head for 20 on 21st August 2019 @ 16.30 to SRBC,13/09/2019,0000449466,190.00,Revenue,UNIVERSITY OF CENTRAL LANCASHIRE,131183
South Ribble Council,http://statistics.data.gov.uk/doc/local-authority/30UN,HR & Communications,Training Expense-Course Fees,1403,TUITION FEES 2018/2019 (APPRENTICESHIP LEVY) FOR NAME REDACTED BUILDING SURVEYING,20/09/2019,0000449590,308.57,Revenue,UNIVERSITY OF CENTRAL LANCASHIRE,131183
South Ribble Council,http://statistics.data.gov.uk/doc/local-authority/30UN,Property Services,Operational Furniture & Equip,4012,2019 / 2020 annual contract for the monthly rental of hot drinks machines at the civic centre including environmental charge.,06/09/2019,0000449320,322.09,Revenue,VENDING ENTERPRISES,00101501
South Ribble Council,http://statistics.data.gov.uk/doc/local-authority/30UN,Information Services,Peripherals,4247,,06/09/2019,0000449367,"4,749.52",Revenue,VODAFONE RE:CABLE & WIRELESS UK,130810
South Ribble Council,http://statistics.data.gov.uk/doc/local-authority/30UN,Property Services,Water Charges,2511,7/5/19 to 26/8/19,04/09/2019,0000449331,913.17,Revenue,WATER PLUS,00029845
South Ribble Council,http://statistics.data.gov.uk/doc/local-authority/30UN,Property Services,Water Charges,2511,7/5/19 to 26/8/19,11/09/2019,0000449472,776.21,Revenue,WATER PLUS,00029845
South Ribble Council,http://statistics.data.gov.uk/doc/local-authority/30UN,HR & Communications,Advertising,4842,ADVERT FOR THE `SENIOR ESTATES SURVEYOR`,27/09/2019,0000449872,882.00,Revenue,WE ARE SUNDAY LTD,132937
South Ribble Council,http://statistics.data.gov.uk/doc/local-authority/30UN,Legal,Legal,4821,PROFESSIONAL SERVICES WITH REGARD TO ADDRESS REDACTED - 1 AUGUST- 27 AUGUST 2019,13/09/2019,0000449453,"1,441.80",Revenue,WEIGHTMANS LLP,00120867
South Ribble Council,http://statistics.data.gov.uk/doc/local-authority/30UN,Legal,Legal,4821,Disbursements,13/09/2019,0000449453,18.00,Revenue,WEIGHTMANS LLP,00120867
South Ribble Council,http://statistics.data.gov.uk/doc/local-authority/30UN,Legal,Legal,4821,PROFESSIONAL SERVICES WITH REGARD TO ADDRESS REDACTED - PROPOSED CPO - 24 MARCH - 22 AUGUST 2019,18/09/2019,0000449580,"6,525.00",Revenue,WEIGHTMANS LLP,00120867
South Ribble Council,http://statistics.data.gov.uk/doc/local-authority/30UN,Revenues Plus,Postage,4291,Revenues July - September 2019,13/09/2019,0000449530,270.42,Revenue,WHISTL  UK LTD,131310
